{"text_format":"1","workbook":"xlsx","n_sheets":6,"sheets":["Титульный лист","инструкция ","уровень 1","уровень 2","уровень 3","Источники"],"not_rendered":{"charts":0,"images":17,"macros":1,"external_links":0,"defined_names":0,"comments":0,"pivot_tables":0},"unopened":[],"bounds":{"document_bytes":16777216,"sheet_cells":100000,"rows_first":2000,"rows_last":500,"rows_between":2000,"halvings":0,"cell_chars":16384,"cell_head_chars":4096},"cells_cut":0,"cells_raw":0,"read":"whole","date_system":"1900"}

{"sheet":"Титульный лист","index":0,"n_rows":0,"n_cols":0,"rows_kept":0,"cut":false,"hidden":false,"merged":[]}

{"sheet":"инструкция ","index":1,"n_rows":2,"n_cols":3,"rows_kept":2,"cut":false,"hidden":false,"merged":[]}
[]
[null,null,"Тренажер "]

{"sheet":"уровень 1","index":2,"n_rows":19,"n_cols":12,"rows_kept":19,"cut":false,"hidden":false,"merged":[]}
[]
[]
[]
[]
[null,null,null," ",{"$f":"IF(D5=F5,\"Молодец\",\"Подумай\")","v":"Подумай"},3,null,null,null," ",{"$f":"IF(J5=L5,\"Молодец\",\"Подумай\")","v":"Подумай"},13]
[]
[null,null,null," ",{"$f":"IF(D7=F7,\"Молодец\",\" Подумай\")","v":" Подумай"},-3,null,null,null," ",{"$f":"IF(J7=L7,\"Молодец\",\"Подумай\")","v":"Подумай"},-13]
[]
[null,null,null," ",{"$f":"IF(D9=F9,\"Молодец\",\"Подумай\")","v":"Подумай"},0,null,null,null," ",{"$f":"IF(J9=L9,\"Молодец\",\"Подумай\")","v":"Подумай"},-13]
[]
[null,null,null," ",{"$f":"IF(D11=F11,\"Молодец\",\"Подумай\")","v":"Подумай"},-1,null,null,null," ",{"$f":"IF(J11=L11,\"Молодец\",\"Подумай\")","v":"Подумай"},-3]
[]
[null,null,null," ",{"$f":"IF(D13=F13,\"Молодец\",\"Подумай\")","v":"Подумай"},-10,null,null,null," ",{"$f":"IF(J13=L13,\"Молодец\",\"Подумай\")","v":"Подумай"},3]
[]
[null,null,null," ",{"$f":"IF(D15=F15,\"Молодец\",\"Подумай\")","v":"Подумай"},0,null,null,null," ",{"$f":"IF(J15=L15,\"Молодец\",\"Подумай\")","v":"Подумай"},-3]
[]
[null,null,null," ",{"$f":"IF(D17=F17,\"Молодец\",\"Подумай\")","v":"Подумай"},-5,null,null,null," ",{"$f":"IF(J17=L17,\"Молодец\",\"Подумай\")","v":"Подумай"},5]
[]
[null,null,null," ",{"$f":"IF(D19=F19,\"Молодец\",\"Подумай\")","v":"Подумай"},-5,null,null,null," ",{"$f":"IF(J19=L19,\"Молодец\",\"Подумай\")","v":"Подумай"},-8]

{"sheet":"уровень 2","index":3,"n_rows":19,"n_cols":13,"rows_kept":19,"cut":false,"hidden":false,"merged":[]}
[]
[]
[]
[]
[null,null,null," ",{"$f":"IF(D5=F5,\"Молодец\",\"Подумай\")","v":"Подумай"},8,null,null,null," ",null,{"$f":"IF(J5=M5,\"Молодец\",\"Подумай\")","v":"Подумай"},356]
[]
[null," ",null," ",{"$f":"IF(D7=F7,\"Молодец\",\"Подумай\")","v":"Подумай"},-8,null,null,null," ",null,{"$f":"IF(J7=M7,\"Молодец\",\"Подумай\")","v":"Подумай"},-356]
[null," "]
[null,null,null," ",{"$f":"IF(D9=F9,\"Молодец\",\"Подумай\")","v":"Подумай"},0,null,null,null," ",null,{"$f":"IF(J9=M9,\"Молодец\",\"Подумай\")","v":"Подумай"},-556]
[]
[null,null,null," ",{"$f":"IF(D11=F11,\"Молодец\",\"Подумай\")","v":"Подумай"},-1,null,null,null," ",null,{"$f":"IF(J11=M11,\"Молодец\",\"Подумай\")","v":"Подумай"},200]
[]
[null,null,null," ",{"$f":"IF(D13=F13,\"Молодец\",\"Подумай\")","v":"Подумай"},-0.1,null,null,null," ",null,{"$f":"IF(J15=M15,\"Молодец\",\"Подумай\")","v":"Подумай"},-200]
[]
[null,null,null," ",{"$f":"IF(D15=F15,\"Молодец\",\"Подумай\")","v":"Подумай"},0.42,null,null,null," ",null,{"$f":"IF(J15=M15,\"Молодец\",\"Подумай\")","v":"Подумай"},200]
[]
[null,null,null," ",{"$f":"IF(D17=F17,\"Молодец\",\"Подумай\")","v":"Подумай"},-400,null,null,null," ",null,{"$f":"IF(J17=M17,\"Молодец\",\"Подумай\")","v":"Подумай"},278]
[]
[null,null,null," ",{"$f":"IF(D19=F19,\"Молодец\",\"Подумай\")","v":"Подумай"},0,null,null,null," ",null,{"$f":"IF(J19=M19,\"Молодец\",\"Подумай\")","v":"Подумай"},-278]

{"sheet":"уровень 3","index":4,"n_rows":19,"n_cols":13,"rows_kept":19,"cut":false,"hidden":false,"merged":[]}
[]
[]
[]
[]
[null,null,null," ",{"$f":"IF(D5=F5,\"Молодец\",\"Подумай\")","v":"Подумай"},0.25,null,null,null,null," ",{"$f":"IF(K5=M5,\"Молодец\",\"Подумай\")","v":"Подумай"},0]
[]
[null,null,null," ",{"$f":"IF(D7=F7,\"Молодец\",\"Подумай\")","v":"Подумай"},-0.625,null,null,null,null," ",{"$f":"IF(K7=M7,\"Молодец\",\"Подумай\")","v":"Подумай"},27.28]
[]
[null,null,null," ",{"$f":"IF(D9=F9,\"Молодец\",\"Подумай\")","v":"Подумай"},2.35,null,null,null,null," ",{"$f":"IF(K9=M9,\"Молодец\",\"Подумай\")","v":"Подумай"},99.34]
[]
[null,null,null," ",{"$f":"IF(D11=F11,\"Молодец\",\"Подумай\")","v":"Подумай"},-20.05,null,null,null,null," ",{"$f":"IF(K11=M11,\"Молодец\",\"Подумай\")","v":"Подумай"},0]
[]
[null,null,null," ",{"$f":"IF(D13=F13,\"Молодец\",\"Подумай\")","v":"Подумай"},-19.5,null,null,null,null," ",{"$f":"IF(K13=M13,\"Молодец\",\"Подумай\")","v":"Подумай"},-24.033000000000001]
[]
[null,null,null," ",{"$f":"IF(D15=F15,\"Молодец\",\"Подумай\")","v":"Подумай"},-42.875,null,null,null,null," ",{"$f":"IF(K15=M15,\"Молодец\",\"Подумай\")","v":"Подумай"},2.7E-2]
[]
[null,null,null," ",{"$f":"IF(D17=F17,\"Молодец\",\"Подумай\")","v":"Подумай"},-49.125,null,null,null,null," ",{"$f":"IF(K17=M17,\"Молодец\",\"Подумай\")","v":"Подумай"},0]
[]
[null,null,null," ",{"$f":"IF(D19=F19,\"Молодец\",\"Подумай\")","v":"Подумай"},49.125,null,null,null,null," ",{"$f":"IF(K19=M19,\"Молодец\",\"Подумай\")","v":"Подумай"},24.033000000000001]

{"sheet":"Источники","index":5,"n_rows":15,"n_cols":6,"rows_kept":15,"cut":false,"hidden":false,"merged":[]}
[]
[null,"ИСТОЧНИКИ:"]
[]
[]
[null,"Баранова И.В. Задачи по математике для 4-5 классов/И.В. Баранова,\nЗ.Г. Борчугова, Н.Л. Стефанова. - М.: Просвещение, 1988"]
[]
[null,"Картинка "]
[null,"http://horschool1.ru/wp-content/uploads/2017/03/s32852678.jpg"]
[]
[]
[]
[]
[]
[]
[null,null,null,null,null," "]